fUST/lending_fUST_20250123
["ID","MTS","AMOUNT","RATE_DAILY","PERIOD"]
[350022301,1737573046486,-8684.6,0.00019178,2]
[350022303,1737573046496,-500.0,0.00019178,2]
[350022305,1737573046506,-500.0,0.00019178,2]
[350022318,1737573046612,-837.54,0.00019178,2]
[350022320,1737573046624,-567.62,0.00019178,2]
[350022322,1737573046635,-180.53219842,0.00019178,2]
[350022324,1737573046645,-276.82143079,0.00019178,2]
[350022326,1737573046655,-889.08,0.00019178,2]
[350022328,1737573046665,-500.0,0.00019178,2]
[350022330,1737573046674,-500.0,0.00019178,2]
[350022332,1737573046683,-500.0,0.00019178,2]
[350022334,1737573046692,-921.48,0.00019178,2]
[350022336,1737573046702,-500.0,0.00019178,2]
[350022338,1737573046711,-500.0,0.00019178,2]
[350022340,1737573046721,-432.79053316,0.00019178,2]
[350022342,1737573046730,-648.91,0.00019178,2]
[350022344,1737573046739,-1051.25,0.00019178,2]
[350022346,1737573046749,-1828.82,0.00019178,2]
[350022348,1737573046758,-1445.83,0.00019178,2]
[350022350,1737573046768,-500.0,0.00019178,2]
[350022352,1737573046778,-1281.91,0.00019178,2]
[350022354,1737573046787,-500.0,0.00019178,2]
[350022356,1737573046798,-500.0,0.00019178,2]
[350022358,1737573046807,-1639.11,0.00019178,2]
[350022360,1737573046816,-682.59,0.00019178,2]
[350022362,1737573046825,-500.0,0.00019178,2]
[350022364,1737573046835,-500.0,0.00019178,2]
[350022366,1737573046844,-500.0,0.00019178,2]
[350022368,1737573046854,-4798.88092798,0.00019178,2]
[350022370,1737573046866,-1806.04907202,0.00019178,2]
[350022372,1737573046875,-10012.00564834,0.00019204,2]
[350022374,1737573046885,-649.16995007,0.00019254,2]
[350022376,1737573046894,-168.43938873,0.00019314,2]
[350022378,1737573046904,-500.0,0.00019315,3]
[350022380,1737573046913,-500.0,0.00019315,3]
[350022382,1737573046922,-500.0,0.00019315,3]
[350022384,1737573046932,-709.77,0.00019315,3]
[350022386,1737573046941,-500.0,0.00019315,3]
[350022388,1737573046951,-500.0,0.00019315,3]
[350022391,1737573046960,-526.20262269,0.00019315,3]
[350022393,1737573046969,-500.0,0.00019315,3]
[350022395,1737573046979,-746.14,0.00019315,3]
[350022397,1737573046989,-500.0,0.00019315,3]
[350022399,1737573046998,-500.0,0.00019315,3]
[350022401,1737573047009,-500.0,0.00019315,3]
[350022403,1737573047018,-562.32,0.00019315,3]
[350022405,1737573047026,-571.72,0.00019315,3]
[350022407,1737573047036,-500.0,0.00019315,3]
[350022409,1737573047047,-500.0,0.00019315,3]
[350022411,1737573047056,-500.0,0.00019315,3]
[350022413,1737573047065,-500.0,0.00019315,3]
[350022415,1737573047075,-500.0,0.00019315,3]
[350022417,1737573047084,-500.0,0.00019315,3]
[350022419,1737573047094,-500.0,0.00019315,3]
[350022421,1737573047103,-500.0,0.00019315,3]
[350022423,1737573047112,-544.09,0.00019315,3]
[350022425,1737573047121,-572.08,0.00019315,3]
[350022427,1737573047130,-500.0,0.00019315,3]
[350022429,1737573047139,-500.0,0.00019315,3]
[350022431,1737573047149,-500.0,0.00019315,3]
[350022433,1737573047162,-815.69,0.00019315,2]
[350022435,1737573047171,-38587.46,0.00019315,3]
[350022436,1737573047181,-1169.51,0.00019315,3]
[350022437,1737573047190,-515.46922841,0.00019315,3]
[350022438,1737573047199,-603.6,0.00019315,3]
[350022439,1737573047210,-500.0,0.00019315,2]
[350022440,1737573047219,-1914.73,0.00019315,3]
[350022441,1737573047228,-1519.4,0.00019315,3]
[350022442,1737573047237,-2971.36,0.00019315,3]
[350022443,1737573047247,-858.26,0.00019315,3]
[350022444,1737573047256,-500.0,0.00019315,3]
[350022445,1737573047265,-820.04,0.00019315,3]
[350022446,1737573047274,-500.0,0.00019315,3]
[350022447,1737573047283,-500.0,0.00019315,3]
[350022448,1737573047294,-396.02622332,0.00019315,3]
[350022449,1737573047303,-500.0,0.00019315,3]
[350022450,1737573047313,-500.0,0.00019315,3]
[350022451,1737573047322,-878.6,0.00019315,3]
[350022452,1737573047331,-500.0,0.00019315,3]
[350022453,1737573047340,-500.0,0.00019315,3]
[350022454,1737573047349,-2658.7,0.00019315,3]
[350022455,1737573047358,-500.0,0.00019315,3]
[350022456,1737573047367,-17085.15,0.00019315,3]
[350022457,1737573047376,-500.0,0.00019315,3]
[350022458,1737573047386,-1686.62,0.00019315,3]
[350022459,1737573047395,-809.91,0.00019315,3]
[350022460,1737573047404,-2490.59,0.00019315,3]
[350022461,1737573047413,-989.09,0.00019315,3]
[350022462,1737573047423,-500.0,0.00019315,3]
[350022463,1737573047432,-225.35394419,0.00019315,3]
[350022464,1737573047442,-2050.92,0.00019315,3]
[350022465,1737573047451,-500.0,0.00019315,3]
[350022466,1737573047462,-8684.6,0.00019315,3]
[350022467,1737573047475,-500.0,0.00019315,3]
[350022468,1737573047485,-837.54,0.00019315,3]
[350022469,1737573047494,-567.62,0.00019315,3]
[350022470,1737573047504,-889.08,0.00019315,3]
[350022472,1737573047515,-500.0,0.00019315,3]
[350022474,1737573047524,-500.0,0.00019315,3]
[350022476,1737573047534,-921.48,0.00019315,3]
[350022478,1737573047548,-500.0,0.00019315,3]
[350022480,1737573047558,-500.0,0.00019315,3]
[350022482,1737573047567,-648.91,0.00019315,3]
[350022484,1737573047577,-1051.25,0.00019315,3]
[350022485,1737573047587,-1828.82,0.00019315,3]
[350022487,1737573047597,-1445.83,0.00019315,3]
[350022489,1737573047606,-500.0,0.00019315,3]
[350022490,1737573047616,-1281.91,0.00019315,3]
[350022492,1737573047626,-500.0,0.00019315,3]
[350022493,1737573047636,-500.0,0.00019315,3]
[350022494,1737573047645,-1639.11,0.00019315,3]
[350022495,1737573047654,-682.59,0.00019315,3]
[350022496,1737573047663,-500.0,0.00019315,2]
[350022497,1737573047673,-500.0,0.00019315,3]
[350022498,1737573047682,-500.0,0.00019315,3]
[350022499,1737573047692,-6604.93,0.00019315,3]
[350022500,1737573047702,-4706.41663811,0.00019348,2]
[350022501,1737573047711,-151.48299169,0.00019351,5]
[350022502,1737573047721,-3000.0,0.00019351,2]
[350022503,1737573047730,-15185.22635556,0.00019351,2]
[350022504,1737573047739,-938.49325091,0.00019374,5]
[350022505,1737573047750,-500.0,0.00019451,2]
[350022506,1737573047759,-500.0,0.00019451,2]
[350022507,1737573047769,-500.0,0.00019451,2]
[350022508,1737573047778,-500.0,0.00019451,2]
[350022509,1737573047787,-500.0,0.00019451,2]
[350022510,1737573047798,-500.0,0.00019451,2]
[350022511,1737573047807,-500.0,0.00019451,2]
[350022512,1737573047816,-500.0,0.00019451,2]
[350022513,1737573047827,-500.0,0.00019451,2]
[350022514,1737573047836,-548.44259732,0.00019451,2]
[350022515,1737573047846,-500.0,0.00019451,2]
[350022516,1737573047855,-500.0,0.00019451,2]
[350022517,1737573047865,-500.0,0.00019451,2]
[350022518,1737573047874,-500.0,0.00019451,2]
[350022519,1737573047883,-500.0,0.00019451,2]
[350022520,1737573047893,-500.0,0.00019451,2]
[350022521,1737573047902,-500.0,0.00019451,2]
[350022522,1737573047911,-500.0,0.00019451,2]
[350022523,1737573047920,-500.0,0.00019451,2]
[350022524,1737573047930,-500.0,0.00019451,2]
[350022525,1737573047939,-500.0,0.00019451,2]
[350022526,1737573047948,-500.0,0.00019451,2]
[350022527,1737573047958,-500.0,0.00019451,2]
[350022528,1737573047967,-500.0,0.00019451,2]
[350022529,1737573047976,-500.0,0.00019451,2]
[350022530,1737573047985,-300.0,0.00019451,2]
[350022531,1737573047994,-500.0,0.00019451,2]
[350022532,1737573048003,-500.0,0.00019451,2]
[350022533,1737573048013,-500.0,0.00019451,2]
[350022534,1737573048022,-500.0,0.00019451,2]
[350022535,1737573048031,-500.0,0.00019451,2]
[350022536,1737573048041,-650.0,0.00019451,2]
[350022537,1737573048051,-500.0,0.00019451,2]
[350022538,1737573048060,-500.0,0.00019451,2]
[350022539,1737573048069,-500.0,0.00019451,2]
[350022540,1737573048079,-500.0,0.00019451,2]
[350022541,1737573048088,-500.0,0.00019451,2]
[350022542,1737573048097,-500.0,0.00019451,2]
[350022543,1737573048107,-500.0,0.00019451,2]
[350022544,1737573048116,-500.0,0.00019451,2]
[350022545,1737573048125,-500.0,0.00019451,2]
[350022546,1737573048135,-500.0,0.00019451,2]
[350022547,1737573048144,-500.0,0.00019451,2]
[350022548,1737573048153,-500.0,0.00019451,2]
[350022549,1737573048162,-500.0,0.00019451,2]
[350022550,1737573048171,-500.0,0.00019451,2]
[350022551,1737573048181,-500.0,0.00019451,2]
[350022552,1737573048190,-500.0,0.00019451,2]
[350022553,1737573048200,-500.0,0.00019451,2]
[350022554,1737573048209,-500.0,0.00019451,2]
[350022555,1737573048219,-500.0,0.00019451,2]
[350022556,1737573048229,-500.0,0.00019451,2]
[350022557,1737573048239,-500.0,0.00019451,2]
[350022558,1737573048248,-450.0,0.00019451,2]
[350022559,1737573048258,-500.0,0.00019451,2]
[350022560,1737573048268,-500.0,0.00019451,2]
[350022561,1737573048277,-500.0,0.00019451,2]
[350022562,1737573048287,-500.0,0.00019451,2]
[350022563,1737573048297,-500.0,0.00019451,2]
[350022564,1737573048307,-500.0,0.00019451,2]
[350022565,1737573048317,-500.0,0.00019451,2]
[350022566,1737573048327,-500.0,0.00019451,2]
[350022567,1737573048336,-500.0,0.00019451,2]
[350022568,1737573048347,-500.0,0.00019451,2]
[350022569,1737573048356,-500.0,0.00019451,2]
[350022570,1737573048366,-500.0,0.00019451,2]
[350022571,1737573048376,-500.0,0.00019451,2]
[350022572,1737573048386,-500.0,0.00019451,2]
[350022573,1737573048395,-500.0,0.00019451,2]
[350022574,1737573048405,-500.0,0.00019451,2]
[350022575,1737573048415,-500.0,0.00019451,2]
[350022576,1737573048424,-500.0,0.00019451,2]
[350022577,1737573048433,-500.0,0.00019451,2]
[350022578,1737573048443,-500.0,0.00019451,2]
[350022579,1737573048453,-500.0,0.00019451,2]
[350022580,1737573048466,-500.0,0.00019451,2]
[350022581,1737573048476,-500.0,0.00019451,2]
[350022582,1737573048486,-500.0,0.00019451,2]
[350022583,1737573048495,-500.0,0.00019451,2]
[350022584,1737573048507,-500.0,0.00019451,2]
[350022585,1737573048516,-500.0,0.00019451,2]
[350022586,1737573048526,-500.0,0.00019452,3]
[350022587,1737573048535,-500.0,0.00019452,3]
[350022588,1737573048547,-500.0,0.00019452,3]
[350022589,1737573048557,-709.77,0.00019452,3]
[350022590,1737573048566,-245.42947778,0.00019452,3]
[350022591,1737573048575,-287.50255962,0.00019452,3]
[350022592,1737573048586,-746.14,0.00019452,3]
[350022593,1737573048595,-500.0,0.00019452,3]
[350022594,1737573048605,-500.0,0.00019452,3]
[350022595,1737573048614,-562.32,0.00019452,3]
[350022596,1737573048706,-571.72,0.00019452,3]
[350022597,1737573048717,-500.0,0.00019452,3]
[350022598,1737573048727,-500.0,0.00019452,3]
[350022599,1737573048736,-500.0,0.00019452,3]
[350022600,1737573048746,-500.0,0.00019452,3]
[350022601,1737573048755,-500.0,0.00019452,3]
[350022602,1737573048765,-500.0,0.00019452,3]
[350022603,1737573048775,-500.0,0.00019452,3]
[350022604,1737573048785,-500.0,0.00019452,3]
[350022605,1737573048795,-544.09,0.00019452,3]
[350022606,1737573048805,-572.08,0.00019452,3]
[350022607,1737573048814,-500.0,0.00019452,3]
[350022608,1737573048824,-500.0,0.00019452,3]
[350022609,1737573048833,-500.0,0.00019452,3]
[350022610,1737573048843,-815.69,0.00019452,2]
[350022611,1737573048852,-38587.46,0.00019452,3]
[350022612,1737573048861,-1169.51,0.00019452,3]
[350022613,1737573048871,-603.6,0.00019452,3]
[350022614,1737573048879,-500.0,0.00019452,2]
[350022615,1737573048889,-1914.73,0.00019452,3]
[350022616,1737573048898,-1519.4,0.00019452,3]
[350022617,1737573048908,-2971.36,0.00019452,3]
[350022618,1737573048918,-858.26,0.00019452,3]
[350022619,1737573048928,-500.0,0.00019452,3]
[350022620,1737573048937,-820.04,0.00019452,3]
[350022621,1737573048947,-500.0,0.00019452,3]
[350022622,1737573048956,-500.0,0.00019452,3]
[350022623,1737573048965,-500.0,0.00019452,3]
[350022624,1737573048975,-500.0,0.00019452,3]
[350022625,1737573048985,-878.6,0.00019452,3]
[350022626,1737573048995,-500.0,0.00019452,3]
[350022627,1737573049004,-500.0,0.00019452,3]
[350022628,1737573049014,-2658.7,0.00019452,3]
[350022629,1737573049023,-500.0,0.00019452,3]
[350022630,1737573049032,-17085.15,0.00019452,3]
[350022631,1737573049041,-500.0,0.00019452,3]
[350022632,1737573049052,-1686.62,0.00019452,3]
[350022633,1737573049062,-809.91,0.00019452,3]
[350022634,1737573049072,-2490.59,0.00019452,3]
[350022635,1737573049083,-989.09,0.00019452,3]
[350022636,1737573049092,-500.0,0.00019452,3]
[350022637,1737573049101,-2050.92,0.00019452,3]
[350022638,1737573049111,-500.0,0.00019452,3]
[350022639,1737573049121,-8684.6,0.00019452,3]
[350022640,1737573049130,-500.0,0.00019452,3]
[350022641,1737573049140,-837.54,0.00019452,3]
[350022642,1737573049151,-567.62,0.00019452,3]
[350022643,1737573049161,-889.08,0.00019452,3]
[350022644,1737573049171,-500.0,0.00019452,3]
[350022645,1737573049180,-500.0,0.00019452,3]
[350022646,1737573049190,-921.48,0.00019452,3]
[350022647,1737573049199,-500.0,0.00019452,3]
[350022648,1737573049209,-500.0,0.00019452,3]
[350022649,1737573049218,-648.91,0.00019452,3]
[350022650,1737573049228,-1051.25,0.00019452,3]
[350022651,1737573049238,-1828.82,0.00019452,3]
[350022652,1737573049248,-1445.83,0.00019452,3]
[350022653,1737573049257,-500.0,0.00019452,3]
[350022654,1737573049266,-1281.91,0.00019452,3]
[350022655,1737573049276,-500.0,0.00019452,3]
[350022656,1737573049286,-500.0,0.00019452,3]
[350022657,1737573049296,-1639.11,0.00019452,3]
[350022658,1737573049306,-682.59,0.00019452,3]
[350022659,1737573049316,-500.0,0.00019452,3]
[350022660,1737573049325,-500.0,0.00019452,3]
[350022661,1737573049335,-6604.93,0.00019452,3]
[350022662,1737573049346,-361.7773517,0.00019452,2]
[350022663,1737573049355,-395.0,0.00019471,2]
[350022664,1737573049366,-706.6564942,0.00019479,2]
[350022665,1737573049376,-1142.03162893,0.000195,2]
[350022666,1737573049386,-2976.33557126,0.00019577,2]
[350022667,1737573049396,-500.0,0.00019589,3]
[350022668,1737573049406,-500.0,0.00019589,3]
[350022669,1737573049416,-500.0,0.00019589,3]
[350022670,1737573049426,-709.77,0.00019589,3]
[350022671,1737573049435,-746.14,0.00019589,3]
[350022672,1737573049445,-500.0,0.00019589,3]
[350022673,1737573049454,-500.0,0.00019589,3]
[350022674,1737573049467,-562.32,0.00019589,3]
[350022675,1737573049477,-571.72,0.00019589,3]
[350022676,1737573049486,-500.0,0.00019589,3]
[350022677,1737573049495,-500.0,0.00019589,3]
[350022678,1737573049505,-500.0,0.00019589,3]
[350022679,1737573049516,-500.0,0.00019589,3]
[350022680,1737573049526,-500.0,0.00019589,3]
[350022681,1737573049535,-500.0,0.00019589,3]
[350022682,1737573049546,-500.0,0.00019589,3]
[350022683,1737573049556,-500.0,0.00019589,3]
[350022684,1737573049565,-544.09,0.00019589,3]
[350022685,1737573049575,-572.08,0.00019589,3]
[350022686,1737573049584,-500.0,0.00019589,3]
[350022687,1737573049593,-376.81773539,0.00019589,3]
[350022688,1737573049602,-500.0,0.00019589,3]
[350022689,1737573049612,-815.69,0.00019589,2]
[350022690,1737573049621,-38587.46,0.00019589,3]
[350022691,1737573049630,-1169.51,0.00019589,3]
[350022692,1737573049639,-603.6,0.00019589,3]
[350022693,1737573049649,-500.0,0.00019589,2]
[350022694,1737573049659,-1914.73,0.00019589,3]
[350022695,1737573049668,-1519.4,0.00019589,3]
[350022696,1737573049678,-2971.36,0.00019589,3]
[350022697,1737573049687,-858.26,0.00019589,3]
[350022698,1737573049697,-500.0,0.00019589,3]
[350022699,1737573049707,-820.04,0.00019589,3]
[350022700,1737573049716,-500.0,0.00019589,3]
[350022701,1737573049726,-240.15237797,0.00019589,3]
[350022702,1737573049735,-500.0,0.00019589,3]
[350022703,1737573049744,-500.0,0.00019589,3]
[350022704,1737573049754,-878.6,0.00019589,3]
[350022705,1737573049763,-500.0,0.00019589,3]
[350022706,1737573049772,-500.0,0.00019589,3]
[350022707,1737573049781,-500.0,0.00019589,3]
[350022708,1737573049791,-2658.7,0.00019589,3]
[350022709,1737573049801,-17085.15,0.00019589,3]
[350022710,1737573049811,-500.0,0.00019589,3]
[350022711,1737573049821,-1686.62,0.00019589,3]
[350022712,1737573049830,-809.91,0.00019589,3]
[350022713,1737573049840,-2490.59,0.00019589,3]
[350022714,1737573049849,-989.09,0.00019589,3]
[350022715,1737573049860,-500.0,0.00019589,3]
[350022716,1737573049872,-2050.92,0.00019589,3]
[350022717,1737573049881,-411.020593,0.00019589,3]
[350022718,1737573049891,-8684.6,0.00019589,3]
[350022719,1737573049900,-500.0,0.00019589,3]
[350022720,1737573049909,-837.54,0.00019589,3]
[350022721,1737573049919,-567.62,0.00019589,3]
[350022722,1737573049929,-889.08,0.00019589,3]
[350022723,1737573049938,-500.0,0.00019589,3]
[350022724,1737573049947,-500.0,0.00019589,3]
[350022725,1737573049956,-921.48,0.00019589,3]
[350022726,1737573049966,-500.0,0.00019589,3]
[350022727,1737573049976,-500.0,0.00019589,3]
[350022728,1737573049985,-648.91,0.00019589,3]
[350022729,1737573049995,-1051.25,0.00019589,3]
[350022730,1737573050005,-1828.82,0.00019589,3]
[350022731,1737573050015,-1445.83,0.00019589,3]
[350022732,1737573050025,-500.0,0.00019589,3]
[350022733,1737573050034,-1281.91,0.00019589,3]
[350022734,1737573050044,-500.0,0.00019589,3]
[350022735,1737573050054,-500.0,0.00019589,3]
[350022736,1737573050063,-1639.11,0.00019589,3]
[350022737,1737573050072,-682.59,0.00019589,3]
[350022738,1737573050081,-500.0,0.00019589,3]
[350022739,1737573050090,-500.0,0.00019589,3]
[350022740,1737573050099,-500.0,0.0001965,2]
[350022741,1737573050108,-500.0,0.0001965,2]
[350022742,1737573050117,-500.0,0.0001966,2]
[350022743,1737573050126,-2689.61313811,0.00019724,2]
[350022744,1737573050135,-500.0,0.00019726,3]
[350022745,1737573050145,-500.0,0.00019726,3]
[350022746,1737573050154,-500.0,0.00019726,3]
[350022747,1737573050163,-709.77,0.00019726,3]
[350022748,1737573050173,-746.14,0.00019726,3]
[350022749,1737573050182,-500.0,0.00019726,3]
[350022750,1737573050192,-500.0,0.00019726,3]
[350022751,1737573050201,-562.32,0.00019726,3]
[350022752,1737573050211,-571.72,0.00019726,3]
[350022753,1737573050220,-500.0,0.00019726,3]
[350022754,1737573050229,-500.0,0.00019726,3]
[350022755,1737573050238,-500.0,0.00019726,3]
[350022756,1737573050248,-500.0,0.00019726,3]
[350022757,1737573050257,-500.0,0.00019726,3]
[350022758,1737573050266,-500.0,0.00019726,3]
[350022759,1737573050276,-500.0,0.00019726,3]
[350022760,1737573050286,-500.0,0.00019726,3]
[350022761,1737573050295,-544.09,0.00019726,3]
[350022762,1737573050305,-572.08,0.00019726,3]
[350022763,1737573050315,-500.0,0.00019726,3]
[350022764,1737573050324,-500.0,0.00019726,3]
[350022765,1737573050333,-815.69,0.00019726,2]
[350022766,1737573050343,-38587.46,0.00019726,3]
[350022767,1737573050355,-1169.51,0.00019726,3]
[350022768,1737573050364,-603.6,0.00019726,3]
[350022769,1737573050374,-294.21,0.00019726,2]
[350022770,1737573050383,-1914.73,0.00019726,3]
[350022771,1737573050393,-1519.4,0.00019726,3]
[350022772,1737573050402,-2971.36,0.00019726,3]
[350022773,1737573050412,-858.26,0.00019726,3]
[350022774,1737573050421,-500.0,0.00019726,3]
[350022775,1737573050431,-820.04,0.00019726,3]
[350022776,1737573050441,-500.0,0.00019726,3]
[350022777,1737573050450,-500.0,0.00019726,3]
[350022778,1737573050460,-500.0,0.00019726,3]
[350022779,1737573050477,-878.6,0.00019726,3]
[350022780,1737573050486,-500.0,0.00019726,3]
[350022781,1737573050499,-500.0,0.00019726,3]
[350022782,1737573050508,-500.0,0.00019726,3]
[350022783,1737573050518,-2658.7,0.00019726,3]
[350022784,1737573050528,-17085.15,0.00019726,3]
[350022785,1737573050538,-500.0,0.00019726,3]
[350022786,1737573050549,-1686.62,0.00019726,3]
[350022787,1737573050559,-809.91,0.00019726,3]
[350022788,1737573050568,-2490.59,0.00019726,3]
[350022789,1737573050653,-989.09,0.00019726,3]
[350022790,1737573050663,-500.0,0.00019726,3]
[350022791,1737573050675,-2050.92,0.00019726,3]
[350022792,1737573050687,-8684.6,0.00019726,3]
[350022793,1737573050698,-500.0,0.00019726,3]
[350022794,1737573050707,-837.54,0.00019726,3]
[350022795,1737573050718,-567.62,0.00019726,3]
[350022796,1737573050729,-889.08,0.00019726,3]
[350022797,1737573050740,-500.0,0.00019726,3]
[350022798,1737573050751,-500.0,0.00019726,3]
[350022799,1737573050762,-921.48,0.00019726,3]
[350022800,1737573050772,-500.0,0.00019726,3]
[350022801,1737573050782,-500.0,0.00019726,3]
[350022802,1737573050791,-648.91,0.00019726,3]
[350022803,1737573050801,-1051.25,0.00019726,3]
[350022804,1737573050811,-1828.82,0.00019726,3]
[350022805,1737573050821,-1445.83,0.00019726,3]
[350022806,1737573050831,-500.0,0.00019726,3]
[350022807,1737573050840,-1281.91,0.00019726,3]
[350022808,1737573050850,-500.0,0.00019726,3]
[350022809,1737573050860,-500.0,0.00019726,3]
[350022810,1737573050870,-1639.11,0.00019726,3]
[350022811,1737573050879,-682.59,0.00019726,3]
[350022812,1737573050888,-500.0,0.00019726,3]
[350022813,1737573050897,-500.0,0.00019726,3]
[350022814,1737573050906,-500.0,0.00019841,2]
[350022815,1737573050916,-204.18289272,0.00019847,2]
[350022816,1737573050925,-605.33613582,0.00019863,3]
[350022817,1737573050934,-500.0,0.00019863,3]
[350022818,1737573050943,-500.0,0.00019863,3]
[350022819,1737573050953,-709.77,0.00019863,3]
[350022820,1737573050962,-746.14,0.00019863,3]
[350022821,1737573050971,-500.0,0.00019863,3]
[350022822,1737573050981,-500.0,0.00019863,3]
[350022823,1737573050992,-562.32,0.00019863,3]
[350022824,1737573051002,-571.72,0.00019863,3]
[350022825,1737573051012,-500.0,0.00019863,3]
[350022826,1737573051022,-500.0,0.00019863,3]
[350022827,1737573051031,-500.0,0.00019863,3]
[350022828,1737573051040,-500.0,0.00019863,3]
[350022829,1737573051050,-500.0,0.00019863,3]
[350022830,1737573051059,-500.0,0.00019863,3]
[350022831,1737573051068,-500.0,0.00019863,3]
[350022832,1737573051077,-500.0,0.00019863,3]
[350022833,1737573051087,-544.09,0.00019863,3]
[350022834,1737573051096,-572.08,0.00019863,3]
[350022835,1737573051105,-500.0,0.00019863,3]
[350022836,1737573051115,-500.0,0.00019863,3]
[350022837,1737573051124,-815.69,0.00019863,2]
[350022838,1737573051134,-38587.46,0.00019863,3]
[350022839,1737573051147,-1169.51,0.00019863,3]
[350022840,1737573051156,-603.6,0.00019863,3]
[350022841,1737573051166,-1914.73,0.00019863,3]
[350022842,1737573051175,-1519.4,0.00019863,3]
[350022843,1737573051185,-2971.36,0.00019863,3]
[350022844,1737573051194,-858.26,0.00019863,3]
[350022845,1737573051203,-500.0,0.00019863,3]
[350022846,1737573051212,-820.04,0.00019863,3]
[350022847,1737573051222,-500.0,0.00019863,3]
[350022848,1737573051231,-500.0,0.00019863,3]
[350022849,1737573051240,-500.0,0.00019863,3]
[350022850,1737573051249,-878.6,0.00019863,3]
[350022851,1737573051259,-435.28298859,0.00019863,3]
[350022852,1737573051268,-500.0,0.00019863,3]
[350022853,1737573051277,-2658.7,0.00019863,3]
[350022854,1737573051286,-17085.15,0.00019863,3]
[350022855,1737573051296,-500.0,0.00019863,3]
[350022856,1737573051306,-1686.62,0.00019863,3]
[350022857,1737573051315,-809.91,0.00019863,3]
[350022858,1737573051324,-2490.59,0.00019863,3]
[350022859,1737573051334,-989.09,0.00019863,3]
[350022860,1737573051343,-500.0,0.00019863,3]
[350022861,1737573051352,-2050.92,0.00019863,3]
[350022862,1737573051361,-8684.6,0.00019863,3]
[350022863,1737573051371,-500.0,0.00019863,3]
[350022864,1737573051380,-837.54,0.00019863,3]
[350022865,1737573051390,-567.62,0.00019863,3]
[350022866,1737573051399,-889.08,0.00019863,3]
[350022867,1737573051408,-500.0,0.00019863,3]
[350022868,1737573051418,-500.0,0.00019863,3]
[350022869,1737573051427,-921.48,0.00019863,3]
[350022870,1737573051437,-500.0,0.00019863,3]
[350022871,1737573051447,-500.0,0.00019863,3]
[350022872,1737573051456,-648.91,0.00019863,3]
[350022873,1737573051467,-1051.25,0.00019863,3]
[350022874,1737573051477,-1828.82,0.00019863,3]
[350022875,1737573051486,-1445.83,0.00019863,3]
[350022876,1737573051496,-500.0,0.00019863,3]
[350022877,1737573051507,-1281.91,0.00019863,3]
[350022878,1737573051516,-500.0,0.00019863,3]
[350022879,1737573051525,-448.79128508,0.00019863,3]
[350022880,1737573051535,-1639.11,0.00019863,3]
[350022881,1737573051552,-682.59,0.00019863,3]
[350022882,1737573051582,-500.0,0.00019863,3]
[350022883,1737573051611,-500.0,0.00019863,3]